fUSD/lending_fUSD_20240426
["ID","MTS","AMOUNT","RATE_DAILY","PERIOD"]
[323679435,1714161042432,-500.0,0.00010958,2]
[323679436,1714161042441,-500.0,0.00010958,2]
[323679437,1714161042451,-2886.14,0.00010958,2]
[323679438,1714161042461,-500.0,0.00010958,2]
[323679439,1714161042470,-1337.14,0.00010958,2]
[323679440,1714161042479,-3735.03,0.00010958,2]
[323679441,1714161042489,-500.0,0.00010958,2]
[323679442,1714161042499,-500.0,0.00010958,2]
[323679443,1714161042508,-500.0,0.00010958,2]
[323679444,1714161042518,-500.0,0.00010958,2]
[323679445,1714161042527,-500.56867595,0.00010958,2]
[323679446,1714161042536,-500.0,0.00010958,2]
[323679447,1714161042545,-534.69,0.00010958,2]
[323679448,1714161042555,-500.0,0.00010958,2]
[323679449,1714161042564,-500.0,0.00010958,2]
[323679450,1714161042573,-3364.42,0.00010958,2]
[323679452,1714161042583,-500.0,0.00010958,2]
[323679454,1714161042592,-501.6464326,0.00010958,2]
[323679456,1714161042601,-500.0,0.00010958,2]
[323679458,1714161042611,-1498.5,0.00010958,2]
[323679460,1714161042620,-500.0,0.00010958,2]
[323679462,1714161042630,-519.57,0.00010958,2]
[323679463,1714161042639,-363.12652946,0.00010958,2]
[323679464,1714161042649,-845.14,0.00010958,2]
[323679465,1714161042658,-500.0,0.00010958,2]
[323679466,1714161042667,-500.0,0.00010958,2]
[323679468,1714161042677,-2689.33,0.00010958,2]
[323679470,1714161042686,-500.0,0.00010958,2]
[323679472,1714161042695,-500.0,0.00010958,2]
[323679473,1714161042705,-371.00801038,0.00010958,2]
[323679474,1714161042715,-500.0,0.00010958,2]
[323679475,1714161042725,-500.0,0.00010958,2]
[323679476,1714161042734,-500.0,0.00010958,2]
[323679477,1714161042744,-500.0,0.00010958,2]
[323679478,1714161042753,-1251.97,0.00010958,2]
[323679479,1714161042763,-500.0,0.00010958,2]
[323679480,1714161042772,-500.0,0.00010958,2]
[323679481,1714161042782,-500.0,0.00010958,2]
[323679482,1714161042792,-500.0,0.00010958,2]
[323679483,1714161042801,-3218.45,0.00010958,2]
[323679484,1714161042811,-500.0,0.00010958,2]
[323679485,1714161042820,-2527.17,0.00010958,2]
[323679486,1714161042830,-500.0,0.00010958,2]
[323679487,1714161042840,-500.0,0.00010958,2]
[323679488,1714161042849,-1041.8,0.00010958,2]
[323679489,1714161042858,-500.0,0.00010958,2]
[323679490,1714161042868,-1739.05,0.00010958,2]
[323679491,1714161042878,-500.0,0.00010958,2]
[323679492,1714161042888,-2030.84,0.00010958,2]
[323679493,1714161042898,-500.0,0.00010958,2]
[323679494,1714161042908,-916.02,0.00010958,2]
[323679495,1714161042917,-683.53,0.00010958,2]
[323679496,1714161042927,-7591.54,0.00010958,2]
[323679497,1714161042936,-508.32733147,0.00010958,2]
[323679498,1714161042945,-500.0,0.00010958,2]
[323679499,1714161042955,-500.0,0.00010958,2]
[323679500,1714161042967,-500.0,0.00010958,2]
[323679501,1714161042978,-500.0,0.00010958,2]
[323679502,1714161042989,-500.76453493,0.00010958,2]
[323679503,1714161042998,-500.0,0.00010958,2]
[323679504,1714161043007,-500.0,0.00010958,2]
[323679505,1714161043016,-500.0,0.00010958,2]
[323679506,1714161043027,-2072.89,0.00010958,2]
[323679507,1714161043036,-500.0,0.00010958,2]
[323679508,1714161043046,-500.0,0.00010958,2]
[323679509,1714161043056,-500.0,0.00010958,2]
[323679510,1714161043065,-500.0,0.00010958,2]
[323679511,1714161043075,-851.64,0.00010958,2]
[323679512,1714161043085,-2748.14,0.00010958,2]
[323679513,1714161043096,-8551.08,0.00010958,2]
[323679514,1714161043105,-500.0,0.00010958,2]
[323679515,1714161043115,-383.8,0.00010958,2]
[323679516,1714161043125,-500.0,0.00010958,2]
[323679517,1714161043135,-500.0,0.00010958,2]
[323679518,1714161043146,-500.0,0.00010958,2]
[323679519,1714161043156,-477.61792215,0.00010958,2]
[323679520,1714161043165,-500.0,0.00010958,2]
[323679521,1714161043175,-500.0,0.00010958,2]
[323679522,1714161043184,-500.0,0.00010958,2]
[323679523,1714161043194,-500.44760964,0.00010958,2]
[323679524,1714161043203,-500.0,0.00010958,2]
[323679525,1714161043212,-2449.65,0.00010958,2]
[323679526,1714161043222,-500.0,0.00010958,2]
[323679528,1714161043231,-1089.17,0.00010958,2]
[323679529,1714161043241,-14838.92,0.00010958,2]
[323679530,1714161043250,-942.24,0.00010958,2]
[323679531,1714161043259,-500.0,0.00010958,2]
[323679532,1714161043270,-8268.61,0.00010958,2]
[323679533,1714161043279,-500.0,0.00010958,2]
[323679534,1714161043288,-500.0,0.00010958,2]
[323679535,1714161043298,-500.0,0.00010958,2]
[323679536,1714161043308,-500.0,0.00010958,2]
[323679537,1714161043318,-500.0,0.00010958,2]
[323679538,1714161043328,-172.53273228,0.00010958,2]
[323679539,1714161043338,-500.22937014,0.00010958,2]
[323679540,1714161043348,-500.0,0.00010958,2]
[323679541,1714161043357,-500.0,0.00010958,2]
[323679542,1714161043367,-1216.04,0.00010958,2]
[323679543,1714161043377,-1833.96,0.00010958,2]
[323679544,1714161043387,-3484.57,0.00010958,2]
[323679545,1714161043397,-1509.87,0.00010958,2]
[323679546,1714161043406,-500.48784711,0.00010958,2]
[323679547,1714161043415,-500.0,0.00010958,2]
[323679548,1714161043424,-500.0,0.00010958,2]
[323679549,1714161043433,-500.0,0.00010958,2]
[323679550,1714161043442,-500.0,0.00010958,2]
[323679551,1714161043452,-500.0,0.00010958,2]
[323679552,1714161043461,-500.0,0.00010958,2]
[323679553,1714161043470,-500.0,0.00010958,2]
[323679554,1714161043480,-500.0,0.00010958,2]
[323679555,1714161043489,-500.0,0.00010958,2]
[323679556,1714161043501,-1051.67,0.00010958,2]
[323679557,1714161043510,-500.0,0.00010958,2]
[323679558,1714161043520,-500.0,0.00010958,2]
[323679559,1714161043529,-1954.82,0.00010958,2]
[323679560,1714161043539,-662.36,0.00010958,2]
[323679561,1714161043549,-1396.18,0.00010958,2]
[323679562,1714161043558,-1862.62,0.00010958,2]
[323679563,1714161043567,-500.0,0.00010958,2]
[323679564,1714161043577,-500.0,0.00010958,2]
[323679565,1714161043586,-536.72754052,0.00010958,2]
[323679566,1714161043596,-500.0,0.00010958,2]
[323679567,1714161043606,-1099.63,0.00010958,2]
[323679568,1714161043615,-500.0,0.00010958,2]
[323679569,1714161043625,-500.0,0.00010958,2]
[323679570,1714161043635,-503.05040795,0.00010958,2]
[323679571,1714161043645,-500.0,0.00010958,2]
[323679572,1714161043656,-500.0,0.00010958,2]
[323679573,1714161043666,-1277.21,0.00010958,2]
[323679574,1714161043676,-834.04,0.00010958,2]
[323679575,1714161043687,-500.0,0.00010958,2]
[323679576,1714161043697,-500.0,0.00010958,2]
[323679577,1714161043707,-500.0,0.00010958,2]
[323679578,1714161043717,-500.0,0.00010958,2]
[323679579,1714161043727,-460.08085227,0.00010958,2]
[323679580,1714161043737,-1543.26,0.00010958,2]
[323679581,1714161043749,-4142.18,0.00010958,2]
[323679582,1714161043758,-500.0,0.00010958,2]
[323679583,1714161043767,-500.0,0.00010958,2]
[323679584,1714161043778,-500.0,0.00010958,2]
[323679585,1714161043787,-500.0,0.00010958,2]
[323679586,1714161043796,-3354.45,0.00010958,2]
[323679587,1714161043806,-500.0,0.00010958,2]
[323679588,1714161043814,-500.0,0.00010958,2]
[323679589,1714161043823,-500.0,0.00010958,2]
[323679590,1714161043834,-1654.46,0.00010958,2]
[323679591,1714161043845,-500.0,0.00010958,2]
[323679592,1714161043855,-500.0,0.00010958,2]
[323679593,1714161043864,-500.0,0.00010958,2]
[323679594,1714161043939,-500.0,0.00010958,2]
[323679595,1714161043948,-1477.62,0.00010958,2]
[323679596,1714161043958,-521.8,0.00010958,2]
[323679597,1714161043969,-1477.62,0.00010958,2]
[323679598,1714161043978,-779.59,0.00010958,2]
[323679599,1714161043987,-1477.62,0.00010958,2]
[323679600,1714161043997,-1268.73,0.00010958,2]
[323679601,1714161044006,-500.0,0.00010958,2]
[323679602,1714161044014,-500.0,0.00010958,2]
[323679603,1714161044024,-635.74393215,0.00010958,2]
[323679604,1714161044034,-2227.6,0.00010958,2]
[323679605,1714161044042,-500.0,0.00010958,2]
[323679606,1714161044052,-2145.62,0.00010958,2]
[323679607,1714161044061,-500.0,0.00010958,2]
[323679608,1714161044070,-709.4,0.00010958,2]
[323679609,1714161044080,-500.0,0.00010958,2]
[323679610,1714161044089,-500.0,0.00010958,2]
[323679611,1714161044099,-2129.08,0.00010958,2]
[323679612,1714161044108,-500.0,0.00010958,2]
[323679613,1714161044117,-500.0,0.00010958,2]
[323679614,1714161044126,-500.0,0.00010958,2]
[323679615,1714161044135,-500.0,0.00010958,2]
[323679616,1714161044143,-500.0,0.00010958,2]
[323679617,1714161044153,-500.0,0.00010958,2]
[323679618,1714161044162,-500.0,0.00010958,2]
[323679619,1714161044171,-971.6,0.00010958,2]
[323679620,1714161044180,-697.58,0.00010958,2]
[323679621,1714161044190,-500.0,0.00010958,2]
[323679622,1714161044199,-1778.36,0.00010958,2]
[323679623,1714161044209,-3473.93,0.00010958,2]
[323679624,1714161044219,-500.0,0.00010958,2]
[323679625,1714161044230,-500.0,0.00010958,2]
[323679626,1714161044240,-718.13,0.00010958,2]
[323679627,1714161044251,-4075.29,0.00010958,2]
[323679628,1714161044261,-500.0,0.00010958,2]
[323679629,1714161044270,-2272.29,0.00010958,2]
[323679630,1714161044279,-500.0,0.00010958,2]
[323679631,1714161044288,-500.0,0.00010958,2]
[323679632,1714161044297,-500.0,0.00010958,2]
[323679633,1714161044306,-500.0,0.00010958,2]
[323679634,1714161044316,-6906.0,0.00010958,2]
[323679635,1714161044325,-500.0,0.00010958,2]
[323679636,1714161044334,-235.12,0.00010958,2]
[323679637,1714161044343,-500.0,0.00010958,2]
[323679638,1714161044352,-500.0,0.00010958,2]
[323679639,1714161044361,-792.47,0.00010958,2]
[323679640,1714161044370,-4246.47,0.00010958,2]
[323679641,1714161044379,-500.0,0.00010958,2]
[323679642,1714161044388,-500.0,0.00010958,2]
[323679643,1714161044397,-500.0,0.00010958,2]
[323679644,1714161044406,-1827.94,0.00010958,2]
[323679645,1714161044415,-500.0,0.00010958,2]
[323679646,1714161044425,-500.0,0.00010958,2]
[323679647,1714161044434,-500.0,0.00010958,2]
[323679648,1714161044443,-500.0,0.00010958,2]
[323679649,1714161044452,-2136.92,0.00010958,2]
[323679650,1714161044461,-500.0,0.00010958,2]
[323679651,1714161044470,-500.0,0.00010958,2]
[323679652,1714161044478,-5377.98,0.00010958,2]
[323679653,1714161044487,-500.0,0.00010958,2]
[323679654,1714161044497,-504.35,0.00010958,2]
[323679655,1714161044506,-843.72,0.00010958,2]
[323679656,1714161044516,-500.0,0.00010958,2]
[323679657,1714161044525,-552.21,0.00010958,2]
[323679658,1714161044534,-672.63,0.00010958,2]
[323679659,1714161044542,-500.0,0.00010958,2]
[323679660,1714161044552,-1777.69,0.00010958,2]
[323679661,1714161044561,-500.0,0.00010958,2]
[323679662,1714161044570,-1418.08,0.00010958,2]
[323679663,1714161044579,-500.0,0.00010958,2]
[323679664,1714161044588,-500.0,0.00010958,2]
[323679665,1714161044597,-500.0,0.00010958,2]
[323679666,1714161044608,-500.0,0.00010958,2]
[323679667,1714161044618,-500.0,0.00010958,2]
[323679668,1714161044627,-2198.85,0.00010958,2]
[323679669,1714161044635,-500.0,0.00010958,2]
[323679670,1714161044644,-770.48,0.00010958,2]
[323679671,1714161044653,-500.0,0.00010958,2]
[323679672,1714161044662,-500.0,0.00010958,2]
[323679673,1714161044671,-500.0,0.00010958,2]
[323679674,1714161044681,-816.17,0.00010958,2]
[323679675,1714161044691,-500.0,0.00010958,2]
[323679676,1714161044700,-500.0,0.00010958,2]
[323679677,1714161044710,-500.0,0.00010958,2]
[323679678,1714161044719,-2657.73,0.00010958,2]
[323679679,1714161044729,-500.0,0.00010958,2]
[323679680,1714161044738,-500.0,0.00010958,2]
[323679681,1714161044749,-500.0,0.00010958,2]
[323679682,1714161044758,-598.1,0.00010958,2]
[323679683,1714161044767,-500.0,0.00010958,2]
[323679684,1714161044776,-500.0,0.00010958,2]
[323679685,1714161044786,-500.0,0.00010958,2]
[323679686,1714161044795,-1183.06,0.00010958,2]
[323679687,1714161044805,-862.84,0.00010958,2]
[323679688,1714161044815,-500.0,0.00010958,2]
[323679689,1714161044824,-500.0,0.00010958,2]
[323679690,1714161044834,-500.0,0.00010958,2]
[323679691,1714161044844,-727.46,0.00010958,2]
[323679692,1714161044854,-2602.48,0.00010958,2]
[323679693,1714161044863,-982.6,0.00010958,2]
[323679694,1714161044872,-500.0,0.00010958,2]
[323679695,1714161044883,-500.0,0.00010958,2]
[323679696,1714161044894,-500.0,0.00010958,2]
[323679697,1714161044903,-500.0,0.00010958,2]
[323679698,1714161044912,-2187.68,0.00010958,2]
[323679699,1714161044921,-500.0,0.00010958,2]
[323679700,1714161044931,-500.0,0.00010958,2]
[323679701,1714161044940,-911.08,0.00010958,2]
[323679702,1714161044949,-927.65,0.00010958,2]
[323679703,1714161044958,-500.0,0.00010958,2]
[323679704,1714161044969,-1644.5,0.00010958,2]
[323679705,1714161044979,-500.0,0.00010958,2]
[323679706,1714161044988,-500.0,0.00010958,2]
[323679707,1714161044999,-500.0,0.00010958,2]
[323679708,1714161045008,-814.37,0.00010958,2]
[323679709,1714161045017,-500.0,0.00010958,2]
[323679710,1714161045026,-2026.08,0.00010958,2]
[323679711,1714161045035,-883.65,0.00010958,2]
[323679712,1714161045043,-500.0,0.00010958,2]
[323679713,1714161045052,-500.0,0.00010958,2]
[323679714,1714161045061,-500.0,0.00010958,2]
[323679715,1714161045070,-500.0,0.00010958,2]
[323679716,1714161045079,-500.0,0.00010958,2]
[323679717,1714161045089,-500.0,0.00010958,2]
[323679718,1714161045098,-500.0,0.00010958,2]
[323679719,1714161045107,-500.0,0.00010958,2]
[323679720,1714161045117,-500.0,0.00010958,2]
[323679721,1714161045126,-500.0,0.00010958,2]
[323679722,1714161045135,-500.0,0.00010958,2]
[323679723,1714161045144,-1387.2,0.00010958,2]
[323679724,1714161045154,-500.0,0.00010958,2]
[323679725,1714161045163,-500.0,0.00010958,2]
[323679726,1714161045172,-500.0,0.00010958,2]
[323679727,1714161045181,-3566.9,0.00010958,2]
[323679728,1714161045190,-500.0,0.00010958,2]
[323679729,1714161045199,-4195.91,0.00010958,2]
[323679730,1714161045208,-500.0,0.00010958,2]
[323679731,1714161045218,-500.0,0.00010958,2]
[323679732,1714161045228,-500.0,0.00010958,2]
[323679733,1714161045238,-500.0,0.00010958,2]
[323679734,1714161045246,-357.62,0.00010958,2]
[323679735,1714161045256,-992.31,0.00010958,2]
[323679736,1714161045265,-1276.87,0.00010958,2]
[323679737,1714161045275,-500.0,0.00010958,2]
[323679738,1714161045284,-500.0,0.00010958,2]
[323679739,1714161045293,-500.0,0.00010958,2]
[323679740,1714161045303,-500.0,0.00010958,2]
[323679741,1714161045312,-500.0,0.00010958,2]
[323679742,1714161045322,-2088.68,0.00010958,2]
[323679743,1714161045333,-500.0,0.00010958,2]
[323679744,1714161045342,-5291.09,0.00010958,2]
[323679745,1714161045354,-500.0,0.00010958,2]
[323679746,1714161045364,-3912.42,0.00010958,2]
[323679747,1714161045374,-500.0,0.00010958,2]
[323679748,1714161045382,-500.0,0.00010958,2]
[323679749,1714161045392,-500.0,0.00010958,2]
[323679750,1714161045403,-500.0,0.00010958,2]
[323679751,1714161045413,-2956.36,0.00010958,2]
[323679752,1714161045422,-500.0,0.00010958,2]
[323679753,1714161045431,-1229.91,0.00010958,2]
[323679754,1714161045442,-500.0,0.00010958,2]
[323679755,1714161045451,-2083.09,0.00010958,2]
[323679756,1714161045461,-2878.43,0.00010958,2]
[323679757,1714161045470,-565.85,0.00010958,2]
[323679758,1714161045479,-172.51,0.00010958,2]
[323679759,1714161045487,-500.0,0.00010958,2]
[323679760,1714161045497,-1007.36,0.00010958,2]
[323679761,1714161045506,-5257.32,0.00010958,2]
[323679762,1714161045515,-2000.0,0.00010959,3]
[323679763,1714161045525,-567.82,0.00010959,2]
[323679764,1714161045533,-500.0,0.00010962,2]
[323679765,1714161045542,-188.22313016,0.00011,2]
[323679766,1714161045551,-194.57256533,0.00011035,2]
[323679767,1714161045560,-177.99668941,0.00011089,2]
[323679768,1714161045569,-1720.51600562,0.00011089,2]
[323679769,1714161045578,-188.22313016,0.00011122,2]
[323679770,1714161045587,-65324.8014,0.00011132,2]
[323679771,1714161045597,-660.7235,0.00011132,2]
[323679772,1714161045606,-1477.62,0.00011136,2]
[323679773,1714161045615,-245000.0,0.00011137,2]
[323679774,1714161045624,-2499.689694,0.00011137,2]
[323679775,1714161045634,-2499.689694,0.00011137,2]
[323679776,1714161045643,-151.0,0.00011137,2]
[323679777,1714161045652,-1000.0,0.00011173,2]
[323679778,1714161045661,-3166.32542946,0.00011189,2]
[323679779,1714161045671,-2358.804043,0.0001123,2]
[323679780,1714161045680,-2998.99544608,0.0001123,2]
[323679781,1714161045689,-500.0,0.00011231,2]
[323679782,1714161045699,-1477.62,0.00011231,2]
[323679783,1714161045708,-568.04,0.00011232,2]
[323679784,1714161045717,-500.0,0.00011232,2]
[323679785,1714161045726,-500.0,0.00011232,2]
[323679786,1714161045735,-500.0,0.00011232,2]
[323679787,1714161045744,-500.0,0.00011232,2]
[323679788,1714161045755,-607.09,0.00011232,2]
[323679789,1714161045764,-500.0,0.00011232,2]
[323679790,1714161045774,-500.0,0.00011232,2]
[323679791,1714161045782,-500.0,0.00011232,2]
[323679792,1714161045791,-500.0,0.00011232,2]
[323679793,1714161045800,-500.0,0.00011232,2]
[323679794,1714161045810,-500.0,0.00011232,2]
[323679795,1714161045819,-500.0,0.00011232,2]
[323679796,1714161045828,-344.72,0.00011232,2]
[323679797,1714161045837,-500.0,0.00011232,2]
[323679798,1714161045846,-500.0,0.00011232,2]
[323679799,1714161045855,-520.33,0.00011232,2]
[323679800,1714161045864,-500.0,0.00011232,2]
[323679801,1714161045873,-500.0,0.00011232,2]
[323679802,1714161045883,-537.96,0.00011232,2]
[323679803,1714161045894,-500.0,0.00011232,2]
[323679804,1714161045904,-500.0,0.00011232,2]
[323679805,1714161045913,-500.0,0.00011232,2]
[323679806,1714161045923,-622.88,0.00011232,2]
[323679807,1714161045933,-500.0,0.00011232,2]
[323679808,1714161045943,-231.83,0.00011232,2]
[323679809,1714161045952,-500.0,0.00011232,2]
[323679810,1714161045963,-681.59,0.00011232,2]
[323679811,1714161045974,-1049.42,0.00011232,2]
[323679812,1714161045985,-500.0,0.00011232,2]
[323679813,1714161045994,-500.0,0.00011232,2]
[323679814,1714161046004,-630.89,0.00011232,2]
[323679815,1714161046014,-500.0,0.00011232,2]
[323679816,1714161046023,-500.0,0.00011232,2]
[323679817,1714161046032,-500.0,0.00011232,2]
[323679818,1714161046041,-500.0,0.00011232,2]
[323679819,1714161046051,-657.66,0.00011232,2]
[323679820,1714161046060,-500.0,0.00011232,2]
[323679821,1714161046069,-500.0,0.00011232,2]
[323679822,1714161046078,-500.0,0.00011232,2]
[323679823,1714161046089,-500.0,0.00011232,2]
[323679824,1714161046098,-500.0,0.00011232,2]
[323679825,1714161046108,-500.0,0.00011232,2]
[323679826,1714161046117,-637.53,0.00011232,2]
[323679827,1714161046126,-500.0,0.00011232,2]
[323679828,1714161046135,-500.0,0.00011232,2]
[323679829,1714161046144,-1462.73,0.00011232,2]
[323679830,1714161046154,-1260.14,0.00011232,2]
[323679831,1714161046163,-1144.44,0.00011232,2]
[323679832,1714161046172,-558.46,0.00011232,2]
[323679833,1714161046181,-500.0,0.00011232,2]
[323679834,1714161046191,-665.02,0.00011232,2]
[323679835,1714161046200,-500.0,0.00011232,2]
[323679836,1714161046209,-469.48,0.00011232,2]
[323679837,1714161046218,-500.0,0.00011232,2]
[323679838,1714161046228,-500.0,0.00011232,2]
[323679839,1714161046237,-956.74,0.00011232,2]
[323679840,1714161046248,-500.0,0.00011232,2]
[323679841,1714161046258,-500.0,0.00011232,2]
[323679842,1714161046268,-535.02237028,0.00011232,2]
[323679843,1714161046277,-708.81,0.00011232,2]
[323679844,1714161046286,-861.03,0.00011232,2]
[323679845,1714161046295,-604.76,0.00011232,2]
[323679846,1714161046304,-500.0,0.00011232,2]
[323679847,1714161046313,-686.12,0.00011232,2]
[323679848,1714161046323,-500.0,0.00011232,2]
[323679849,1714161046332,-500.0,0.00011232,2]
[323679850,1714161046341,-1457.68,0.00011232,2]
[323679851,1714161046350,-659.66,0.00011232,2]
[323679852,1714161046358,-500.0,0.00011232,2]
[323679853,1714161046367,-611.53,0.00011232,2]
[323679854,1714161046376,-500.0,0.00011232,2]
[323679855,1714161046385,-500.0,0.00011232,2]
[323679856,1714161046395,-500.0,0.00011232,2]
[323679857,1714161046405,-1405.26,0.00011232,2]
[323679858,1714161046414,-500.0,0.00011232,2]
[323679859,1714161046423,-303.81269664,0.00011232,2]
[323679860,1714161046432,-500.0,0.00011232,2]
[323679861,1714161046441,-500.0,0.00011232,2]
[323679862,1714161046450,-578.33,0.00011232,2]
[323679863,1714161046460,-1605.92,0.00011232,2]
[323679864,1714161046470,-156.38400229,0.00011232,2]
[323679865,1714161046479,-500.0,0.00011232,2]
[323679866,1714161046488,-1365.92,0.00011232,2]
[323679867,1714161046499,-647.36,0.00011232,2]
[323679868,1714161046508,-500.0,0.00011232,2]
[323679869,1714161046517,-805.26,0.00011232,2]
[323679870,1714161046526,-500.0,0.00011232,2]
[323679871,1714161046536,-349.31,0.00011232,2]
[323679872,1714161046546,-500.0,0.00011232,2]
[323679873,1714161046555,-574.77655315,0.00011232,2]
[323679874,1714161046564,-657.65,0.00011232,2]
[323679875,1714161046573,-500.0,0.00011232,2]
[323679876,1714161046586,-716.55,0.00011232,2]
[323679877,1714161046620,-600.95,0.00011232,2]
[323679878,1714161046630,-953.75,0.00011232,2]
[323679879,1714161046640,-500.0,0.00011232,2]
[323679880,1714161046649,-500.0,0.00011232,2]
[323679881,1714161046659,-500.0,0.00011232,2]
[323679882,1714161046668,-500.0,0.00011232,2]
[323679883,1714161046677,-500.0,0.00011232,2]
[323679884,1714161046686,-784.95,0.00011232,2]
[323679885,1714161046696,-500.0,0.00011232,2]
[323679886,1714161046705,-500.0,0.00011232,2]
[323679887,1714161046715,-1074.46,0.00011232,2]
[323679888,1714161046724,-500.0,0.00011232,2]
[323679889,1714161046734,-500.0,0.00011232,2]
[323679890,1714161046744,-500.0,0.00011232,2]
[323679891,1714161046754,-500.0,0.00011232,2]
[323679892,1714161046763,-855.37,0.00011232,2]
[323679893,1714161046772,-500.0,0.00011232,2]
[323679894,1714161046781,-580.07,0.00011232,2]
[323679895,1714161046791,-634.65,0.00011232,2]
[323679896,1714161046800,-500.0,0.00011232,2]
[323679897,1714161046810,-500.0,0.00011232,2]
[323679898,1714161046819,-500.0,0.00011232,2]
[323679899,1714161046828,-637.96,0.00011232,2]
[323679900,1714161046837,-500.0,0.00011232,2]
[323679901,1714161046847,-1839.38,0.00011232,2]
[323679902,1714161046856,-500.0,0.00011232,2]
[323679903,1714161046865,-500.0,0.00011232,2]
[323679904,1714161046874,-500.0,0.00011232,2]
[323679905,1714161046883,-502.05778128,0.00011232,2]
[323679906,1714161046895,-500.0,0.00011232,2]
[323679907,1714161046904,-500.0,0.00011232,2]
[323679908,1714161046914,-500.0,0.00011232,2]
[323679909,1714161046923,-1063.15,0.00011232,2]
[323679910,1714161046934,-500.0,0.00011232,2]
[323679911,1714161046943,-500.0,0.00011232,2]
[323679912,1714161046952,-1124.89,0.00011232,2]
[323679913,1714161046961,-500.0,0.00011232,2]
[323679914,1714161046972,-677.79,0.00011232,2]
[323679915,1714161046981,-500.0,0.00011232,2]
[323679916,1714161046991,-420.49,0.00011232,2]
[323679917,1714161047002,-500.0,0.00011232,2]
[323679918,1714161047011,-1550.66,0.00011232,2]
[323679919,1714161047020,-500.0,0.00011232,2]
[323679920,1714161047029,-500.0,0.00011232,2]
[323679921,1714161047039,-640.61,0.00011232,2]
[323679922,1714161047049,-500.0,0.00011232,2]
[323679923,1714161047059,-506.57,0.00011232,2]
[323679924,1714161047068,-500.0,0.00011232,2]
[323679925,1714161047078,-610.92,0.00011232,2]
[323679926,1714161047088,-500.0,0.00011232,2]
[323679927,1714161047098,-497.81,0.00011232,2]
[323679928,1714161047107,-10145.05,0.00011232,2]
[323679929,1714161047118,-1107.56,0.00011232,2]
[323679930,1714161047127,-259.33,0.00011232,2]
[323679931,1714161047136,-500.0,0.00011232,2]
[323679932,1714161047146,-182.93,0.00011232,2]
[323679933,1714161047155,-500.0,0.00011232,2]
[323679934,1714161047165,-963.02,0.00011232,2]
[323679935,1714161047174,-500.0,0.00011232,2]
[323679936,1714161047183,-500.0,0.00011232,2]
[323679937,1714161047193,-651.56,0.00011232,2]
[323679938,1714161047202,-2974.51,0.00011232,2]
[323679939,1714161047212,-2086.46,0.00011232,2]
[323679940,1714161047221,-1914.82,0.00011232,2]
[323679941,1714161047230,-649.13,0.00011232,2]
[323679942,1714161047239,-158.29994292,0.00011232,2]
[323679943,1714161047250,-500.0,0.00011232,2]
[323679944,1714161047259,-500.0,0.00011232,2]